[Event "Late-Titled-Tuesday-Blitz-March-26-2024"]
[Site "Chess.com"]
[Date "2024.03.26"]
[Round "8"]
[White "kingofthenil"]
[Black "GMBenjaminBok"]
[Result "1-0"]
[WhiteElo "2781"]
[BlackElo "2962"]
[TimeControl "180+1"]
[EndTime "15:27:40 PDT"]
[Termination "kingofthenil won on time"]

1. Nf3 {[%clk 0:02:57.5]} 1... Nf6 {[%clk 0:02:59.2]} 2. e3 {[%clk 0:02:57.6]}
2... g6 {[%clk 0:02:56.6]} 3. d4 {[%clk 0:02:57.2]} 3... Bg7 {[%clk 0:02:57.1]}
4. c4 {[%clk 0:02:57.9]} 4... O-O {[%clk 0:02:57]} 5. Nc3 {[%clk 0:02:58.5]}
5... c5 {[%clk 0:02:57.3]} 6. d5 {[%clk 0:02:58.4]} 6... d6 {[%clk 0:02:57.7]}
7. h3 {[%clk 0:02:58.1]} 7... e6 {[%clk 0:02:58.1]} 8. Bd3 {[%clk 0:02:58.1]}
8... exd5 {[%clk 0:02:58.2]} 9. cxd5 {[%clk 0:02:59]} 9... Na6 {[%clk
0:02:50.1]} 10. O-O {[%clk 0:02:58.6]} 10... Re8 {[%clk 0:02:49.8]} 11. Re1
{[%clk 0:02:50]} 11... Rb8 {[%clk 0:02:42.5]} 12. e4 {[%clk 0:02:47.9]} 12...
Nc7 {[%clk 0:02:41.6]} 13. a4 {[%clk 0:02:42.3]} 13... a6 {[%clk 0:02:20.7]} 14.
Bf4 {[%clk 0:02:42.5]} 14... b5 {[%clk 0:02:02.6]} 15. axb5 {[%clk 0:02:41.7]}
15... axb5 {[%clk 0:02:03.5]} 16. e5 {[%clk 0:02:37.2]} 16... Nfxd5 {[%clk
0:01:59.9]} 17. Nxd5 {[%clk 0:02:30.1]} 17... Nxd5 {[%clk 0:02:00.8]} 18. Bg5
{[%clk 0:02:30.9]} 18... Qb6 {[%clk 0:01:43.4]} 19. Be4 {[%clk 0:02:25.7]} 19...
Nb4 {[%clk 0:01:40.7]} 20. exd6 {[%clk 0:02:18.1]} 20... Bxb2 {[%clk 0:00:59.5]}
21. Rb1 {[%clk 0:02:18]} 21... Bc3 {[%clk 0:00:58.8]} 22. Re3 {[%clk 0:01:56.6]}
22... Bd7 {[%clk 0:00:46.9]} 23. Rxc3 {[%clk 0:01:27.2]} 23... Rxe4 {[%clk
0:00:46.4]} 24. Be3 {[%clk 0:01:28.1]} 24... Rc8 {[%clk 0:00:30.2]} 25. Ng5
{[%clk 0:01:25.7]} 25... Rc4 {[%clk 0:00:21.1]} 26. Rxc4 {[%clk 0:00:53.1]}
26... bxc4 {[%clk 0:00:22]} 27. Ne4 {[%clk 0:00:53.9]} 27... Bf5 {[%clk
0:00:08.5]} 28. d7 {[%clk 0:00:41.1]} 28... Rd8 {[%clk 0:00:08.7]} 29. Bxc5
{[%clk 0:00:38.3]} 29... Qc6 {[%clk 0:00:08.2]} 30. Rxb4 {[%clk 0:00:18.7]}
30... Bxe4 {[%clk 0:00:08.3]} 31. Rb8 {[%clk 0:00:18.8]} 31... Rxb8 {[%clk
0:00:01]} 32. d8=Q+ {[%clk 0:00:19.7]} 32... Rxd8 {[%clk 0:00:01.4]} 33. Qxd8+
{[%clk 0:00:20.6]} 33... Kg7 {[%clk 0:00:02.1]} 34. Bd4+ {[%clk 0:00:21.2]}
34... f6 {[%clk 0:00:01.4]} 35. Qe7+ {[%clk 0:00:21.8]} 35... Kh6 {[%clk
0:00:01.5]} 36. Bxf6 {[%clk 0:00:22.7]} 1-0

[Event "Late-Titled-Tuesday-Blitz-March-26-2024"]
[Site "Chess.com"]
[Date "2024.03.26"]
[Round "8"]
[White "Oleksandr_Bortnyk"]
[Black "kids2010"]
[Result "1-0"]
[WhiteElo "3040"]
[BlackElo "2811"]
[TimeControl "180+1"]
[EndTime "15:27:41 PDT"]
[Termination "Oleksandr_Bortnyk won on time"]

1. e4 {[%clk 0:03:00.9]} 1... e5 {[%clk 0:02:57.8]} 2. Bc4 {[%clk 0:02:53.4]}
2... Nc6 {[%clk 0:02:55.2]} 3. Nf3 {[%clk 0:02:51]} 3... Nf6 {[%clk 0:02:54.2]}
4. Ng5 {[%clk 0:02:50.4]} 4... d5 {[%clk 0:02:49.9]} 5. exd5 {[%clk 0:02:51.3]}
5... Na5 {[%clk 0:02:49.1]} 6. Bb5+ {[%clk 0:02:51.6]} 6... c6 {[%clk
0:02:49.1]} 7. dxc6 {[%clk 0:02:52.5]} 7... bxc6 {[%clk 0:02:49.1]} 8. Bd3
{[%clk 0:02:52.7]} 8... h6 {[%clk 0:02:36.7]} 9. Ne4 {[%clk 0:02:50.6]} 9... Nd5
{[%clk 0:02:37.1]} 10. O-O {[%clk 0:02:46.5]} 10... Be7 {[%clk 0:02:27.6]} 11.
Ng3 {[%clk 0:02:46.3]} 11... O-O {[%clk 0:02:22.6]} 12. Bf5 {[%clk 0:02:31.6]}
12... Ba6 {[%clk 0:02:09.5]} 13. d3 {[%clk 0:02:31.1]} 13... Bf6 {[%clk
0:01:28.2]} 14. Qg4 {[%clk 0:02:20.3]} 14... Bg5 {[%clk 0:00:59.3]} 15. b4
{[%clk 0:01:53.9]} 15... Nb7 {[%clk 0:00:49.9]} 16. Bxg5 {[%clk 0:01:53]} 16...
Qxg5 {[%clk 0:00:50]} 17. Qxg5 {[%clk 0:01:53.1]} 17... hxg5 {[%clk 0:00:50.5]}
18. a3 {[%clk 0:01:48]} 18... Nd6 {[%clk 0:00:49.9]} 19. Bd7 {[%clk 0:01:46.5]}
19... Ne7 {[%clk 0:00:43.7]} 20. Re1 {[%clk 0:01:44.4]} 20... Rfd8 {[%clk
0:00:43]} 21. Bg4 {[%clk 0:01:40.8]} 21... f6 {[%clk 0:00:40.9]} 22. Nd2 {[%clk
0:01:36.3]} 22... Nb5 {[%clk 0:00:34.7]} 23. Nb3 {[%clk 0:01:30.9]} 23... Nd4
{[%clk 0:00:30.4]} 24. Nxd4 {[%clk 0:01:29.6]} 24... Rxd4 {[%clk 0:00:31.3]} 25.
Be6+ {[%clk 0:01:30]} 25... Kf8 {[%clk 0:00:30.6]} 26. Ne4 {[%clk 0:01:29.9]}
26... Bc8 {[%clk 0:00:27.6]} 27. Nc5 {[%clk 0:01:29.4]} 27... a5 {[%clk
0:00:25.5]} 28. Bxc8 {[%clk 0:01:29.5]} 28... Nxc8 {[%clk 0:00:23.3]} 29. Ne6+
{[%clk 0:01:29.6]} 29... Kf7 {[%clk 0:00:24.2]} 30. Nxd4 {[%clk 0:01:29.9]}
30... exd4 {[%clk 0:00:25.1]} 31. Reb1 {[%clk 0:01:24.8]} 31... Nd6 {[%clk
0:00:24.8]} 32. bxa5 {[%clk 0:01:25.1]} 32... Rxa5 {[%clk 0:00:25.7]} 33. a4
{[%clk 0:01:25.8]} 33... Ke6 {[%clk 0:00:24.1]} 34. Kf1 {[%clk 0:01:21.4]} 34...
Kd5 {[%clk 0:00:24.1]} 35. Ke2 {[%clk 0:01:21.7]} 35... g4 {[%clk 0:00:23.5]}
36. Kd2 {[%clk 0:01:21.9]} 36... g5 {[%clk 0:00:22.8]} 37. Rb8 {[%clk 0:01:21]}
37... Nb5 {[%clk 0:00:19.9]} 38. Rd8+ {[%clk 0:01:09.6]} 38... Kc5 {[%clk
0:00:16.8]} 39. Rf8 {[%clk 0:01:06.4]} 39... Nc3 {[%clk 0:00:16.2]} 40. Rxf6
{[%clk 0:01:06.5]} 40... Ra8 {[%clk 0:00:16.3]} 41. Rf5+ {[%clk 0:01:03.7]}
41... Kb4 {[%clk 0:00:16.6]} 42. a5 {[%clk 0:00:57.6]} 42... c5 {[%clk 0:00:12]}
43. a6 {[%clk 0:00:57.2]} 43... Ra7 {[%clk 0:00:12.4]} 44. Rxg5 {[%clk
0:00:56.1]} 44... Rf7 {[%clk 0:00:10.6]} 45. a7 {[%clk 0:00:52.9]} 45... Rxf2+
{[%clk 0:00:10.3]} 46. Ke1 {[%clk 0:00:52.7]} 46... Re2+ {[%clk 0:00:04.5]} 47.
Kf1 {[%clk 0:00:53]} 1-0

[Event "Late-Titled-Tuesday-Blitz-March-26-2024"]
[Site "Chess.com"]
[Date "2024.03.26"]
[Round "8"]
[White "XDPS"]
[Black "Koalaskakistis"]
[Result "1-0"]
[WhiteElo "2912"]
[BlackElo "2506"]
[TimeControl "180+1"]
[EndTime "15:27:42 PDT"]
[Termination "XDPS won by checkmate"]

1. d4 {[%clk 0:03:00.9]} 1... f5 {[%clk 0:02:57.4]} 2. Bf4 {[%clk 0:02:59.6]}
2... Nf6 {[%clk 0:02:56.6]} 3. e3 {[%clk 0:03:00.1]} 3... e6 {[%clk 0:02:57.2]}
4. h4 {[%clk 0:03:00.3]} 4... b6 {[%clk 0:02:55.3]} 5. Nf3 {[%clk 0:02:59.8]}
5... Bb7 {[%clk 0:02:55.5]} 6. Nbd2 {[%clk 0:03:00.3]} 6... Bd6 {[%clk
0:02:55.8]} 7. h5 {[%clk 0:03:00]} 7... Bxf4 {[%clk 0:02:52.5]} 8. exf4 {[%clk
0:02:55.5]} 8... O-O {[%clk 0:02:50]} 9. c3 {[%clk 0:02:53.8]} 9... Nc6 {[%clk
0:02:47.5]} 10. Bd3 {[%clk 0:02:53.4]} 10... Ne7 {[%clk 0:02:34.6]} 11. g3
{[%clk 0:02:51.4]} 11... Ne4 {[%clk 0:02:26.2]} 12. Rh2 {[%clk 0:02:38.9]} 12...
Nxd2 {[%clk 0:02:26.1]} 13. Nxd2 {[%clk 0:02:39.4]} 13... c5 {[%clk 0:02:23.1]}
14. dxc5 {[%clk 0:02:33]} 14... bxc5 {[%clk 0:02:23.1]} 15. Qe2 {[%clk
0:02:33.6]} 15... h6 {[%clk 0:02:13.3]} 16. O-O-O {[%clk 0:02:29.2]} 16... Qc7
{[%clk 0:02:09.3]} 17. Nc4 {[%clk 0:02:26.8]} 17... Nc6 {[%clk 0:01:59.2]} 18.
Qe3 {[%clk 0:02:10.6]} 18... Na5 {[%clk 0:01:59.4]} 19. Ne5 {[%clk 0:02:03.8]}
19... d6 {[%clk 0:01:43.7]} 20. Ng6 {[%clk 0:02:03.8]} 20... Rf6 {[%clk
0:01:29.4]} 21. c4 {[%clk 0:02:01.5]} 21... Nc6 {[%clk 0:01:27.9]} 22. f3 {[%clk
0:01:52]} 22... Nd4 {[%clk 0:01:27.8]} 23. Rf2 {[%clk 0:01:52.7]} 23... e5
{[%clk 0:01:24.3]} 24. fxe5 {[%clk 0:01:51.7]} 24... dxe5 {[%clk 0:01:25.1]} 25.
Nxe5 {[%clk 0:01:52]} 25... Qa5 {[%clk 0:01:08.8]} 26. Kb1 {[%clk 0:01:50.5]}
26... Ra6 {[%clk 0:01:02.7]} 27. a3 {[%clk 0:01:46.5]} 27... Rb6 {[%clk
0:00:52.1]} 28. Bc2 {[%clk 0:00:58.5]} 28... Ba6 {[%clk 0:00:35]} 29. Rxd4
{[%clk 0:00:57.4]} 29... cxd4 {[%clk 0:00:34.1]} 30. Qxd4 {[%clk 0:00:58.3]}
30... Bb7 {[%clk 0:00:17.8]} 31. Bxf5 {[%clk 0:00:54]} 31... Rf6 {[%clk
0:00:14.8]} 32. g4 {[%clk 0:00:53.6]} 32... Rd8 {[%clk 0:00:14.9]} 33. Qe3
{[%clk 0:00:48.4]} 33... Rd1+ {[%clk 0:00:14.7]} 34. Ka2 {[%clk 0:00:48.8]}
34... Re1 {[%clk 0:00:14]} 35. Re2 {[%clk 0:00:46.6]} 35... Rxe2 {[%clk
0:00:12.5]} 36. Qxe2 {[%clk 0:00:47.5]} 36... Ba6 {[%clk 0:00:08]} 37. f4 {[%clk
0:00:45.9]} 37... Qc5 {[%clk 0:00:06.4]} 38. Qd3 {[%clk 0:00:44.1]} 38... Rd6
{[%clk 0:00:06.7]} 39. Qe4 {[%clk 0:00:42.2]} 39... Qd4 {[%clk 0:00:05.3]} 40.
Qa8+ {[%clk 0:00:42.7]} 40... Rd8 {[%clk 0:00:05.9]} 41. Qc6 {[%clk 0:00:40.6]}
41... Qd6 {[%clk 0:00:04.4]} 42. Be6+ {[%clk 0:00:38.7]} 42... Kf8 {[%clk
0:00:04.1]} 43. Ng6# {[%clk 0:00:38.3]} 1-0

[Event "Late-Titled-Tuesday-Blitz-March-26-2024"]
[Site "Chess.com"]
[Date "2024.03.26"]
[Round "8"]
[White "1g60-1"]
[Black "ImportedItalianMaple"]
[Result "0-1"]
[WhiteElo "2391"]
[BlackElo "2522"]
[TimeControl "180+1"]
[EndTime "15:27:44 PDT"]
[Termination "ImportedItalianMaple won by resignation"]

1. e4 {[%clk 0:03:00.9]} 1... g6 {[%clk 0:02:57.4]} 2. d4 {[%clk 0:03:00.1]}
2... Bg7 {[%clk 0:02:57.7]} 3. Nc3 {[%clk 0:03:00.7]} 3... d5 {[%clk 0:02:58.3]}
4. e5 {[%clk 0:02:56.3]} 4... f6 {[%clk 0:02:57.5]} 5. exf6 {[%clk 0:02:52]}
5... Nxf6 {[%clk 0:02:56.3]} 6. Be3 {[%clk 0:02:51.7]} 6... O-O {[%clk 0:02:56]}
7. Be2 {[%clk 0:02:52.2]} 7... Nc6 {[%clk 0:02:46.1]} 8. Bg5 {[%clk 0:02:37.1]}
8... Be6 {[%clk 0:02:38]} 9. h4 {[%clk 0:02:32.7]} 9... Ne4 {[%clk 0:02:31]} 10.
Nxe4 {[%clk 0:02:22.1]} 10... dxe4 {[%clk 0:02:31.9]} 11. c3 {[%clk 0:02:20.1]}
11... Qd7 {[%clk 0:02:11.4]} 12. h5 {[%clk 0:02:16.4]} 12... h6 {[%clk
0:02:08.6]} 13. Be3 {[%clk 0:01:46.4]} 13... g5 {[%clk 0:02:08]} 14. Qc2 {[%clk
0:01:39.9]} 14... a5 {[%clk 0:01:36.7]} 15. b3 {[%clk 0:01:19.4]} 15... Bf5
{[%clk 0:01:26.5]} 16. O-O-O {[%clk 0:01:14.5]} 16... a4 {[%clk 0:01:13.1]} 17.
b4 {[%clk 0:01:12.3]} 17... a3 {[%clk 0:01:08.9]} 18. Qb3+ {[%clk 0:00:43.7]}
18... e6 {[%clk 0:01:05]} 19. g4 {[%clk 0:00:39.8]} 19... Bh7 {[%clk 0:01:01.6]}
20. Bb5 {[%clk 0:00:34.2]} 20... Kh8 {[%clk 0:00:54.2]} 21. Ne2 {[%clk
0:00:30.7]} 21... Bg8 {[%clk 0:00:28.8]} 22. Ng3 {[%clk 0:00:19.1]} 22... Qf7
{[%clk 0:00:17.4]} 23. Nxe4 {[%clk 0:00:13.7]} 23... Qf3 {[%clk 0:00:17.5]} 24.
Nd2 {[%clk 0:00:11.2]} 24... Qxg4 {[%clk 0:00:18.1]} 25. Rdg1 {[%clk 0:00:09.3]}
25... Qf5 {[%clk 0:00:16.5]} 26. Qc2 {[%clk 0:00:09.2]} 26... Qxb5 {[%clk
0:00:11.4]} 27. Ne4 {[%clk 0:00:06.7]} 27... Bh7 {[%clk 0:00:11.2]} 28. f3
{[%clk 0:00:06.3]} 28... Rxf3 {[%clk 0:00:10.5]} 29. Rf1 {[%clk 0:00:06.3]}
29... Rxe3 {[%clk 0:00:10.3]} 30. Rf7 {[%clk 0:00:05.8]} 30... Bxe4 {[%clk
0:00:09.6]} 0-1

[Event "Late-Titled-Tuesday-Blitz-March-26-2024"]
[Site "Chess.com"]
[Date "2024.03.26"]
[Round "8"]
[White "Heydarli77"]
[Black "Abhishek2"]
[Result "1-0"]
[WhiteElo "2466"]
[BlackElo "2328"]
[TimeControl "180+1"]
[EndTime "15:27:46 PDT"]
[Termination "Heydarli77 won by resignation"]

1. d4 {[%clk 0:02:55.8]} 1... Nf6 {[%clk 0:02:59.8]} 2. c4 {[%clk 0:02:54.5]}
2... e6 {[%clk 0:03:00.2]} 3. Nf3 {[%clk 0:02:53.1]} 3... d5 {[%clk 0:03:00.2]}
4. Nc3 {[%clk 0:02:52.4]} 4... Bb4 {[%clk 0:03:00.9]} 5. Bg5 {[%clk 0:02:50.5]}
5... h6 {[%clk 0:02:58.6]} 6. Bxf6 {[%clk 0:02:48.6]} 6... Qxf6 {[%clk
0:02:59.5]} 7. e3 {[%clk 0:02:49]} 7... O-O {[%clk 0:02:59.2]} 8. Qb3 {[%clk
0:02:45.7]} 8... c5 {[%clk 0:02:58]} 9. a3 {[%clk 0:02:43.5]} 9... Bxc3+ {[%clk
0:02:56.7]} 10. bxc3 {[%clk 0:02:43.6]} 10... dxc4 {[%clk 0:02:54.2]} 11. Bxc4
{[%clk 0:02:42.9]} 11... Nc6 {[%clk 0:02:53.2]} 12. Be2 {[%clk 0:02:39.3]} 12...
e5 {[%clk 0:02:45.9]} 13. dxc5 {[%clk 0:02:28.9]} 13... e4 {[%clk 0:02:39.7]}
14. Nd4 {[%clk 0:02:28]} 14... Ne5 {[%clk 0:02:36.9]} 15. O-O {[%clk 0:02:25.5]}
15... Bg4 {[%clk 0:02:19.1]} 16. Qxb7 {[%clk 0:02:14.9]} 16... Rfe8 {[%clk
0:02:08.4]} 17. h3 {[%clk 0:02:05.3]} 17... Rab8 {[%clk 0:01:40.2]} 18. Qd5
{[%clk 0:01:48.3]} 18... Rbd8 {[%clk 0:01:37.4]} 19. Qa2 {[%clk 0:01:46.9]}
19... Nf3+ {[%clk 0:01:26.7]} 20. Kh1 {[%clk 0:01:16.4]} 20... Qh4 {[%clk
0:01:08.3]} 21. Bxf3 {[%clk 0:01:05.5]} 21... Bxh3 {[%clk 0:01:03.5]} 22. g3
{[%clk 0:01:04.2]} 22... Qg5 {[%clk 0:00:58]} 23. Bg2 {[%clk 0:01:02.6]} 23...
Bg4 {[%clk 0:00:56.8]} 24. Kg1 {[%clk 0:00:53.7]} 24... Qxc5 {[%clk 0:00:53.5]}
25. Rab1 {[%clk 0:00:47.6]} 25... Qh5 {[%clk 0:00:45.6]} 26. Rb7 {[%clk
0:00:46.1]} 26... Bf3 {[%clk 0:00:40]} 27. Rfb1 {[%clk 0:00:43.7]} 27... Rd6
{[%clk 0:00:35.6]} 28. R1b5 {[%clk 0:00:41.8]} 28... Qg6 {[%clk 0:00:32]} 29.
Bh3 {[%clk 0:00:38.8]} 29... Rf6 {[%clk 0:00:26.1]} 30. Rf5 {[%clk 0:00:37.6]}
30... Rf8 {[%clk 0:00:22]} 31. Qd5 {[%clk 0:00:36.4]} 31... Rd6 {[%clk
0:00:21.3]} 32. Qe5 {[%clk 0:00:35.5]} 32... Rb6 {[%clk 0:00:21.3]} 33. Rxb6
{[%clk 0:00:35.1]} 33... Qxb6 {[%clk 0:00:21.1]} 34. Qb5 {[%clk 0:00:34.4]}
34... Qc7 {[%clk 0:00:20]} 35. Qc5 {[%clk 0:00:32.8]} 35... Rb8 {[%clk
0:00:18.2]} 36. Nxf3 {[%clk 0:00:32.2]} 36... Rb1+ {[%clk 0:00:15.3]} 37. Kh2
{[%clk 0:00:32]} 37... Qd8 {[%clk 0:00:13.4]} 38. Rd5 {[%clk 0:00:30.8]} 38...
Qf6 {[%clk 0:00:12.7]} 39. Qc8+ {[%clk 0:00:29.6]} 39... Kh7 {[%clk 0:00:13.1]}
40. Qf5+ {[%clk 0:00:29.6]} 40... Qxf5 {[%clk 0:00:13.4]} 41. Bxf5+ {[%clk
0:00:30.1]} 41... g6 {[%clk 0:00:13.1]} 42. Bxe4 {[%clk 0:00:30.7]} 42... f5
{[%clk 0:00:13.7]} 43. Bxb1 {[%clk 0:00:30.2]} 1-0

[Event "Late-Titled-Tuesday-Blitz-March-26-2024"]
[Site "Chess.com"]
[Date "2024.03.26"]
[Round "8"]
[White "dretch"]
[Black "Oleg_Papayan"]
[Result "1-0"]
[WhiteElo "2868"]
[BlackElo "2645"]
[TimeControl "180+1"]
[EndTime "15:27:47 PDT"]
[Termination "dretch won by resignation"]

1. d4 {[%clk 0:03:00.9]} 1... d5 {[%clk 0:02:58.9]} 2. c4 {[%clk 0:03:01.2]}
2... dxc4 {[%clk 0:02:59.3]} 3. e3 {[%clk 0:03:01.1]} 3... Nf6 {[%clk
0:02:58.7]} 4. Bxc4 {[%clk 0:03:01.3]} 4... e6 {[%clk 0:02:59.5]} 5. Nf3 {[%clk
0:03:00.9]} 5... a6 {[%clk 0:03:00.1]} 6. O-O {[%clk 0:03:00.2]} 6... b5 {[%clk
0:03:00.7]} 7. Bd3 {[%clk 0:02:53.7]} 7... Bb7 {[%clk 0:03:01]} 8. a4 {[%clk
0:02:52]} 8... b4 {[%clk 0:03:00.8]} 9. Nbd2 {[%clk 0:02:49.6]} 9... Nbd7 {[%clk
0:02:58.6]} 10. Qe2 {[%clk 0:02:42.3]} 10... c5 {[%clk 0:02:58.7]} 11. e4 {[%clk
0:02:40.2]} 11... cxd4 {[%clk 0:02:57.9]} 12. e5 {[%clk 0:02:40.6]} 12... Nd5
{[%clk 0:02:56.9]} 13. Nb3 {[%clk 0:02:33.1]} 13... h6 {[%clk 0:02:49.3]} 14.
Re1 {[%clk 0:02:27.5]} 14... Nc5 {[%clk 0:02:49.5]} 15. Nxc5 {[%clk 0:02:25.3]}
15... Bxc5 {[%clk 0:02:50.4]} 16. Bd2 {[%clk 0:02:15.2]} 16... a5 {[%clk
0:02:39.1]} 17. Rac1 {[%clk 0:02:12.5]} 17... Bb6 {[%clk 0:02:33]} 18. Bb5+
{[%clk 0:02:01.1]} 18... Kf8 {[%clk 0:02:33.4]} 19. Qe4 {[%clk 0:01:53.8]} 19...
Rb8 {[%clk 0:02:27.7]} 20. Qd3 {[%clk 0:01:39.4]} 20... g6 {[%clk 0:02:21.5]}
21. Nxd4 {[%clk 0:01:28.5]} 21... Nc7 {[%clk 0:01:32]} 22. Be3 {[%clk
0:01:01.4]} 22... Nxb5 {[%clk 0:01:29.7]} 23. axb5 {[%clk 0:00:52.4]} 23... Qd5
{[%clk 0:01:29.3]} 24. f3 {[%clk 0:00:41.8]} 24... Rd8 {[%clk 0:01:28.1]} 25.
Rcd1 {[%clk 0:00:31.1]} 25... Kg7 {[%clk 0:01:21.5]} 26. Qe2 {[%clk 0:00:18.2]}
26... Kh7 {[%clk 0:00:54.4]} 27. Bf2 {[%clk 0:00:18.5]} 27... Qa2 {[%clk
0:00:36.3]} 28. Ra1 {[%clk 0:00:15.6]} 28... Qd5 {[%clk 0:00:35.9]} 29. Red1
{[%clk 0:00:15.8]} 29... Rc8 {[%clk 0:00:24.5]} 30. Nc6 {[%clk 0:00:08.1]} 30...
Bxf2+ {[%clk 0:00:21.4]} 31. Qxf2 {[%clk 0:00:08.4]} 31... Qb3 {[%clk
0:00:14.2]} 32. Nxa5 {[%clk 0:00:07.8]} 1-0

[Event "Late-Titled-Tuesday-Blitz-March-26-2024"]
[Site "Chess.com"]
[Date "2024.03.26"]
[Round "8"]
[White "ProfessorChess101"]
[Black "GMMikhailKazakov"]
[Result "1-0"]
[WhiteElo "2776"]
[BlackElo "2513"]
[TimeControl "180+1"]
[EndTime "15:27:50 PDT"]
[Termination "ProfessorChess101 won on time"]

1. d4 {[%clk 0:03:00.4]} 1... d5 {[%clk 0:02:53.2]} 2. c4 {[%clk 0:03:00.3]}
2... e6 {[%clk 0:02:53.6]} 3. Nc3 {[%clk 0:02:59]} 3... c5 {[%clk 0:02:52.8]} 4.
cxd5 {[%clk 0:02:57.8]} 4... exd5 {[%clk 0:02:52.8]} 5. Nf3 {[%clk 0:02:49.1]}
5... Nc6 {[%clk 0:02:52.5]} 6. dxc5 {[%clk 0:02:39.2]} 6... Be6 {[%clk
0:02:39.6]} 7. Be3 {[%clk 0:02:21.4]} 7... Nf6 {[%clk 0:02:33.9]} 8. Nd4 {[%clk
0:02:21]} 8... Ng4 {[%clk 0:02:19]} 9. Nxc6 {[%clk 0:02:10.7]} 9... bxc6 {[%clk
0:02:06.2]} 10. Bd4 {[%clk 0:02:07.7]} 10... Qb8 {[%clk 0:01:59.9]} 11. Qa4
{[%clk 0:01:57.7]} 11... Bd7 {[%clk 0:01:52.4]} 12. h3 {[%clk 0:01:38.7]} 12...
Nh2 {[%clk 0:01:42.5]} 13. O-O-O {[%clk 0:01:19.9]} 13... Nxf1 {[%clk
0:01:27.3]} 14. Rhxf1 {[%clk 0:01:20.8]} 14... Qb7 {[%clk 0:01:18.7]} 15. e4
{[%clk 0:01:13.6]} 15... Rb8 {[%clk 0:01:13.3]} 16. Qc2 {[%clk 0:01:02.4]} 16...
f6 {[%clk 0:01:03.7]} 17. Rfe1 {[%clk 0:00:57.7]} 17... Kf7 {[%clk 0:01:02.7]}
18. f4 {[%clk 0:00:49.2]} 18... Be7 {[%clk 0:00:55.4]} 19. e5 {[%clk 0:00:46.2]}
19... Bf5 {[%clk 0:00:51.4]} 20. Qe2 {[%clk 0:00:34.7]} 20... Rhe8 {[%clk
0:00:33.9]} 21. g4 {[%clk 0:00:34.5]} 21... Be4 {[%clk 0:00:20.4]} 22. Nxe4
{[%clk 0:00:29.3]} 22... dxe4 {[%clk 0:00:21.3]} 23. Qc4+ {[%clk 0:00:22.2]}
23... Kf8 {[%clk 0:00:19]} 24. Rxe4 {[%clk 0:00:21.7]} 24... Qb5 {[%clk
0:00:18.4]} 25. Qc3 {[%clk 0:00:15]} 25... Bd8 {[%clk 0:00:14.7]} 26. exf6
{[%clk 0:00:14]} 26... Rxe4 {[%clk 0:00:13.6]} 27. fxg7+ {[%clk 0:00:12.6]}
27... Kf7 {[%clk 0:00:13.7]} 28. Be5 {[%clk 0:00:12.4]} 28... Rb7 {[%clk
0:00:08.8]} 29. Rxd8 {[%clk 0:00:08.8]} 29... Re1+ {[%clk 0:00:02.6]} 30. Qxe1
{[%clk 0:00:07.8]} 30... Qc4+ {[%clk 0:00:03]} 31. Qc3 {[%clk 0:00:06.9]} 31...
Qf1+ {[%clk 0:00:02.9]} 32. Rd1 {[%clk 0:00:07.6]} 1-0